bitfinex/quotes_SOLUSD_20250922
["timestamp","ask_amount","ask_price","bid_price","bid_amount"]
[1758570738974,7.09573816,217.59,217.5,5.27759266]
[1758570739270,39.59559401,217.6,217.52,7.09573816]
[1758570739469,0.5921,217.63,217.59,7.09573816]
[1758570739865,1.2921,217.63,217.58,7.09573816]
[1758570740171,26.2,217.63,217.59,7.09573816]
[1758570740379,7.09573816,217.6,217.48,5.27799937]
[1758570740565,13.59559401,217.61,217.48,5.27799937]
[1758570740566,7.79573816,217.59,217.51,7.09573816]
[1758570740767,7.79573816,217.59,217.49,0.68]
[1758570740768,0.7,217.59,217.52,7.09573816]
[1758570740965,0.7,217.59,217.54,7.09573816]
[1758570741575,20.69133217,217.61,217.51,4.59732992]
[1758570741886,13.59559401,217.61,217.54,7.09573816]
[1758570742771,13.59559401,217.61,217.52,0.68]
[1758570743092,7.79573816,217.6,217.53,7.09573816]
[1758570743389,7.79573816,217.59,217.51,11.6931734]
[1758570743591,0.7,217.59,217.52,7.09573816]
[1758570743805,13.59559401,217.61,217.53,7.09573816]
[1758570743969,26.0,217.61,217.58,7.09573816]
[1758570744293,26.7,217.6,217.53,0.68]
[1758570744605,26.0,217.56,217.48,0.68]
[1758570744903,26.0,217.56,217.49,11.69360194]
[1758570745077,26.7,217.56,217.49,11.69360194]
[1758570745394,26.0,217.56,217.49,4.59786378]
[1758570745584,26.0,217.56,217.52,7.09573816]
[1758570745891,26.0,217.56,217.53,7.09573816]
[1758570746375,40.29559401,217.59,217.53,7.09573816]
[1758570746574,26.0,217.56,217.53,7.09573816]
[1758570746785,13.59559401,217.53,217.44,0.68]
[1758570746987,13.59559401,217.53,217.48,7.09573816]
[1758570747186,14.26559401,217.53,217.48,7.09573816]
[1758570747697,13.59559401,217.53,217.44,0.68]
[1758570747872,0.67,217.52,217.44,5.27896975]
[1758570748073,13.59559401,217.53,217.48,7.09573816]
[1758570748286,13.59559401,217.53,217.5,7.09573816]
[1758570748600,13.59559401,217.58,217.52,7.09573816]
[1758570748898,26.0,217.58,217.56,4.59643316]
[1758570749100,0.2,217.63,217.57,7.09573816]
[1758570749282,0.2,217.63,217.59,7.09573816]
[1758570750297,0.2,217.63,217.58,7.09573816]
[1758570750607,0.2,217.63,217.59,7.09573816]
[1758570750774,0.2,217.63,217.58,7.09573816]
[1758570751510,0.87,217.63,217.58,7.09573816]
[1758570751999,26.0,217.56,217.5,7.09573816]
[1758570752207,7.09573816,217.62,217.55,7.09573816]
[1758570752405,26.0,217.6,217.54,7.09573816]
[1758570752900,0.67,217.59,217.47,0.72]
[1758570753208,0.67,217.59,217.48,11.69384033]
[1758570753209,26.0,217.55,217.48,11.69384033]
[1758570753415,26.0,217.53,217.48,4.59810217]
[1758570753710,26.0,217.53,217.48,12.41384033]
[1758570754874,26.0,217.54,217.5,7.09573816]
[1758570755074,26.0,217.54,217.48,12.41384033]
[1758570755282,26.0,217.54,217.48,7.09573816]
[1758570755704,26.0,217.54,217.48,11.69373268]
[1758570755870,26.0,217.54,217.5,7.09573816]
[1758570757106,26.0,217.57,217.52,7.09573816]
[1758570757486,13.59559401,217.59,217.54,7.09573816]
[1758570757696,13.59559401,217.61,217.54,7.09573816]
[1758570758006,3.02401678,217.6,217.56,7.09573816]
[1758570758207,29.02401678,217.6,217.56,7.09573816]
[1758570758387,26.0,217.6,217.56,7.09573816]
[1758570758793,26.3921,217.6,217.56,7.09573816]
[1758570759001,26.0,217.58,217.51,4.59731029]
[1758570759204,33.09573816,217.58,217.51,4.59731029]
[1758570759500,3.02878721,217.57,217.51,4.59731029]
[1758570759906,33.09573816,217.58,217.51,4.59731029]
[1758570760203,13.59559401,217.56,217.46,4.59839053]
[1758570760423,26.0,217.53,217.47,7.09573816]
[1758570760802,26.0,217.53,217.48,4.59812396]
[1758570761116,134.2,217.55,217.5,7.09573816]
[1758570761288,134.2,217.55,217.5,7.81573816]
[1758570762713,134.2,217.55,217.51,4.59748977]
[1758570764724,0.3921,217.6,217.54,7.09573816]
[1758570764887,0.3921,217.6,217.52,0.72]
[1758570764888,0.3921,217.6,217.56,7.09573816]
[1758570765082,26.0,217.59,217.56,7.09573816]
[1758570765284,0.3921,217.6,217.58,7.09573816]
[1758570765521,0.3921,217.6,217.57,0.72]
[1758570765522,0.3921,217.6,217.59,7.09573816]
[1758570765725,0.3921,217.6,217.59,7.81573816]
[1758570766004,0.3921,217.6,217.59,46.03573816]
[1758570766216,1e-08,217.6,217.59,46.03573816]
[1758570766444,0.2,217.63,217.6,16.08455881]
[1758570766613,0.2,217.63,217.62,7.09573816]
[1758570766812,1e-08,217.63,217.62,7.09573816]
[1758570767045,1e-08,217.63,217.62,7.81573816]
[1758570767623,1e-08,217.63,217.62,21.41133217]
[1758570768027,1e-08,217.63,217.62,0.72]
[1758570768332,1e-08,217.63,217.62,7.09573816]
[1758570768641,1e-08,217.63,217.62,11.69090404]
[1758570772967,1e-08,217.63,217.62,12.41090404]
[1758570774048,1e-08,217.63,217.62,11.69090404]
[1758570774733,0.40310001,217.63,217.62,49.89090404]
[1758570777053,1e-08,217.63,217.62,50.61090404]
[1758570777826,1e-08,217.63,217.62,43.49516588]
[1758570778042,1e-08,217.63,217.62,49.87090404]
[1758570778841,1e-08,217.63,217.62,50.57090404]
[1758570781079,1e-08,217.63,217.62,5.29516588]
[1758570781369,1e-08,217.63,217.62,38.16]
[1758570781568,1e-08,217.63,217.62,7.09573816]
[1758570781740,1e-08,217.63,217.62,7.79573816]
[1758570782143,1e-08,217.63,217.62,7.09573816]
[1758570782366,1e-08,217.63,217.62,4.59516588]
[1758570782656,1e-08,217.63,217.62,12.39090404]
[1758570783259,1e-08,217.63,217.62,11.69090404]
[1758570783557,1e-08,217.63,217.62,45.25573816]
[1758570783944,0.68000001,217.63,217.62,38.16]
[1758570784453,1e-08,217.63,217.62,49.85090404]
[1758570785458,1e-08,217.63,217.62,50.55090404]
[1758570786573,1e-08,217.63,217.62,4.59516588]
[1758570786779,1e-08,217.63,217.56,4.51771774]
[1758570786780,1e-08,217.63,217.61,42.67771774]
[1758570787954,1e-08,217.63,217.57,16.08657901]
[1758570787955,0.68,217.62,217.57,4.59602425]
[1758570788155,0.68,217.62,217.58,38.16]
[1758570788156,0.68,217.61,217.58,38.16]
[1758570788352,0.68,217.6,217.51,0.7]
[1758570788574,0.68,217.6,217.56,4.51771774]
[1758570788881,0.68,217.59,217.55,4.51771774]
[1758570789045,0.68,217.59,217.49,0.7]
[1758570789046,0.68,217.58,217.53,4.51771774]
[1758570789253,0.68,217.57,217.53,4.51771774]
[1758570789451,0.68,217.59,217.55,4.51771774]
[1758570789655,13.59559401,217.6,217.55,4.51771774]
[1758570789656,0.68,217.58,217.55,4.51771774]
[1758570789868,26.68,217.57,217.54,4.51771774]
[1758570790079,0.68,217.56,217.54,4.51771774]
[1758570790350,26.0,217.57,217.54,4.51771774]
[1758570790671,0.68,217.56,217.54,4.51771774]
[1758570790847,0.68,217.55,217.54,4.51771774]
[1758570791171,26.0,217.57,217.54,4.51771774]
[1758570791374,26.68,217.57,217.54,4.51771774]
[1758570791552,26.0,217.57,217.54,4.5968338]
[1758570791755,26.68,217.57,217.55,4.51771774]
[1758570791964,0.68,217.56,217.55,4.51771774]
[1758570792269,26.0,217.57,217.55,4.51771774]
[1758570792474,0.68,217.56,217.53,4.51771774]
[1758570792673,0.68,217.55,217.47,4.5983354]
[1758570792977,0.68,217.55,217.49,4.51771774]
[1758570793180,14.27559401,217.54,217.48,4.51771774]
[1758570793484,26.0,217.5,217.45,4.51771774]
[1758570793672,26.68,217.5,217.46,4.51771774]
[1758570794050,0.68,217.5,217.46,4.51771774]
[1758570794446,0.68,217.49,217.45,4.51771774]
[1758570794681,26.0,217.53,217.46,0.7]
[1758570795259,26.68,217.53,217.48,4.51771774]
[1758570795564,0.68,217.52,217.48,4.51771774]
[1758570795764,0.68,217.51,217.4,37.36]
[1758570796067,44.11331175,217.49,217.41,4.51771774]
[1758570796263,0.69,217.48,217.42,4.51771774]
[1758570797177,0.69,217.48,217.4,4.69976469]
[1758570797358,5.20771774,217.48,217.41,4.51771774]
[1758570797687,0.69,217.48,217.41,9.11727908]
[1758570797986,0.69,217.48,217.42,4.51771774]
[1758570798355,13.59559401,217.47,217.41,4.51771774]
[1758570798558,26.0,217.45,217.4,0.1]
[1758570799276,26.69,217.45,217.4,4.69979817]
[1758570799482,26.69,217.45,217.4,0.1]
[1758570799667,26.69,217.45,217.4,4.69978984]
[1758570799979,26.69,217.45,217.41,4.51771774]
[1758570800293,26.69,217.45,217.4,0.1]
[1758570800449,13.59559401,217.42,217.4,0.1]
[1758570800654,18.11331175,217.42,217.4,0.1]
[1758570800852,26.0,217.38,217.32,0.1]
[1758570801051,4.51771774,217.36,217.32,0.1]
[1758570801497,26.0,217.33,217.32,0.1]
[1758570801981,26.69,217.33,217.32,0.1]
[1758570802877,26.0,217.33,217.32,0.1]
[1758570805480,26.69,217.33,217.32,0.1]
[1758570806263,78.42559401,217.33,217.32,0.1]
[1758570806578,13.59559401,217.28,217.19,4.60414326]
[1758570806792,4.51771774,217.26,217.19,4.60414326]
[1758570808389,13.59559401,217.25,217.18,0.72]
[1758570808598,13.59559401,217.25,217.18,5.32440412]
[1758570808599,4.51771774,217.24,217.18,5.32440412]
[1758570809088,13.59559401,217.26,217.18,9.84212186]
[1758570809258,13.59559401,217.26,217.18,16.83559299]
[1758570809574,26.0,217.25,217.19,5.20771774]
[1758570809775,26.0,217.25,217.21,4.51771774]
[1758570809990,26.0,217.25,217.22,4.60362765]
[1758570810179,26.0,217.26,217.22,5.29362765]
[1758570810383,26.0,217.25,217.22,5.29362765]
[1758570811967,26.0,217.25,217.24,4.60320382]
[1758570812695,26.2787,217.25,217.24,4.60320382]
[1758570812861,26.2787,217.25,217.22,0.69]
[1758570812862,0.2787,217.25,217.22,0.69]
[1758570813063,0.2787,217.25,217.2,16.80412601]
[1758570813391,0.2787,217.25,217.12,39.69559401]
[1758570813392,4.51771774,217.23,217.16,0.69]
[1758570813688,4.51771774,217.23,217.16,5.29472843]
[1758570813894,30.51771774,217.23,217.16,5.29472843]
[1758570814193,134.2,217.22,217.16,16.80697746]
[1758570814393,134.2,217.22,217.16,16.11697746]
[1758570814571,134.2,217.22,217.17,5.20771774]
[1758570814892,134.2,217.22,217.18,0.69]
[1758570815780,134.2,217.22,217.19,0.69]
[1758570815975,134.2,217.22,217.18,4.60447555]
[1758570816289,134.2,217.22,217.18,5.29447555]
[1758570816674,134.2,217.22,217.18,16.80566442]
[1758570818580,134.2,217.21,217.18,16.80566442]
[1758570819397,4.79641774,217.25,217.18,16.80566442]
[1758570819597,26.2787,217.25,217.21,4.51771774]
[1758570819891,26.2787,217.25,217.21,5.20771774]
[1758570820276,0.2787,217.25,217.23,4.51771774]
[1758570820584,0.2787,217.25,217.24,0.69]
[1758570821492,0.2787,217.25,217.24,4.60320382]
[1758570822289,0.2787,217.25,217.24,5.29320382]
[1758570823672,0.66,217.36,217.24,16.80121339]
[1758570823985,26.66,217.36,217.29,4.51771774]
[1758570824185,0.66,217.36,217.31,4.51771774]
[1758570824669,0.66,217.35,217.29,4.51771774]
[1758570825074,13.59559401,217.36,217.29,4.51771774]
[1758570825378,26.66,217.38,217.31,4.51771774]
[1758570825692,134.2,217.37,217.32,16.10528252]
[1758570826190,134.2,217.37,217.32,20.62300026]
[1758570826497,134.86,217.37,217.32,20.62300026]
[1758570827097,134.2,217.37,217.32,21.31300026]
[1758570827795,134.2,217.37,217.36,4.51771774]
[1758570828005,134.2,217.37,217.36,5.20771774]
[1758570828391,0.66,217.45,217.36,5.20771774]
[1758570828601,0.66,217.45,217.4,4.51771774]
[1758570828889,39.59559401,217.47,217.4,4.51771774]
[1758570829088,0.66,217.48,217.42,4.51771774]
[1758570829287,0.66,217.48,217.4,5.20771774]
[1758570829595,0.66,217.48,217.41,16.09861551]
[1758570830695,13.59559401,217.48,217.41,16.09861551]
[1758570830901,134.2,217.49,217.42,5.20771774]
[1758570831075,4.51771774,217.5,217.42,5.20771774]
[1758570831286,0.66,217.51,217.42,0.69]
[1758570831485,5.17771774,217.55,217.47,4.51771774]
[1758570831680,0.66,217.55,217.49,4.51771774]
[1758570831985,0.66,217.56,217.49,4.51771774]
[1758570832813,33.82074493,217.67,217.43,38.1]
[1758570832814,0.66,217.6,217.51,4.51771774]
[1758570833098,1.69349958,217.67,217.53,4.51771774]
[1758570833398,37.3,217.69,217.5,54.19195401]
[1758570833399,0.66,217.64,217.55,4.51771774]
[1758570833604,26.66,217.64,217.56,0.69]
[1758570833785,0.321,217.6,217.56,0.69]
[1758570834187,0.321,217.6,217.56,5.20771774]
[1758570834600,0.321,217.6,217.57,4.5962219]
[1758570835303,5.17771774,217.59,217.53,4.59706707]
[1758570835480,4.51771774,217.57,217.49,4.51771774]
[1758570835682,4.51771774,217.55,217.48,12.18489334]
[1758570836496,4.51771774,217.55,217.48,5.28809951]
[1758570836789,138.71771774,217.54,217.48,5.28809951]
[1758570836981,134.2,217.53,217.48,5.28809951]
[1758570837810,134.2,217.53,217.48,4.59809951]
[1758570838015,4.51771774,217.54,217.46,4.59838791]
[1758570838016,139.40771774,217.52,217.46,4.59838791]
[1758570838185,4.51771774,217.5,217.46,4.59838791]
[1758570838518,134.2,217.49,217.44,4.59878916]
[1758570839030,134.2,217.49,217.44,5.26878916]
[1758570840208,134.2,217.49,217.44,16.76621373]
[1758570840402,134.2,217.49,217.47,4.51771774]
[1758570840591,134.2,217.49,217.48,0.67]
[1758570840923,134.2,217.49,217.48,5.18771774]
[1758570841293,134.2,217.49,217.48,4.51771774]
[1758570841494,134.2,217.49,217.46,4.51771774]
[1758570841696,134.2,217.49,217.47,0.67]
[1758570841896,134.2,217.49,217.48,0.67]
[1758570842590,134.2,217.49,217.44,11.49742457]
[1758570842811,134.89,217.49,217.44,4.59896983]
[1758570843115,134.2,217.49,217.44,4.59896983]
[1758570843314,134.2,217.49,217.47,4.51771774]
[1758570843615,134.2,217.49,217.48,0.67]
[1758570843817,26.69,217.57,217.48,0.67]
[1758570843998,134.2,217.59,217.54,4.51771774]
[1758570844308,26.0,217.58,217.54,4.51771774]
[1758570844813,1.011,217.6,217.55,4.59664444]
[1758570845319,30.51771774,217.57,217.48,0.67]
[1758570845517,30.51771774,217.57,217.44,0.67]
[1758570845518,4.51771774,217.55,217.44,0.67]
[1758570845718,5.20771774,217.55,217.45,42.53771774]
[1758570846202,4.51771774,217.53,217.44,0.67]
[1758570846622,13.59559401,217.51,217.44,0.67]
[1758570846833,7.10712627,217.5,217.43,4.59918134]
[1758570847305,33.10712627,217.52,217.44,0.67]
[1758570847510,26.0,217.52,217.47,7.10712627]
[1758570847719,26.0,217.52,217.47,7.77712627]
[1758570848499,26.0,217.52,217.45,7.10712627]
[1758570848810,7.79712627,217.51,217.43,4.59918134]
[1758570849120,134.89,217.5,217.42,7.10712627]
[1758570849318,141.30712627,217.49,217.4,7.77712627]
[1758570849522,7.10712627,217.47,217.4,5.26965881]
[1758570849831,7.10712627,217.47,217.4,4.59965881]
[1758570850142,7.79712627,217.47,217.38,18.67285945]
[1758570850424,7.79712627,217.47,217.39,0.67]
[1758570850720,26.0,217.44,217.38,4.60005901]
[1758570850938,26.0,217.44,217.35,50.19191058]
[1758570850939,20.70272028,217.43,217.35,14.06231055]
[1758570851138,7.10712627,217.41,217.33,4.60129756]
[1758570851426,7.79712627,217.41,217.33,4.60129756]
[1758570853228,7.79712627,217.41,217.33,16.10454147]
[1758570853429,0.69,217.41,217.33,16.10454147]
[1758570853630,7.79712627,217.41,217.33,16.10454147]
[1758570854016,7.79712627,217.41,217.33,4.60129756]
[1758570855017,7.79712627,217.41,217.33,16.10454147]
[1758570855416,0.71,217.4,217.32,13.85149198]
[1758570855617,0.71,217.4,217.31,7.10712627]
[1758570856132,7.81712627,217.4,217.32,5.31147378]
[1758570856417,13.59559401,217.39,217.32,4.60147378]
[1758570856728,7.81712627,217.38,217.29,18.61225436]
[1758570856934,7.81712627,217.38,217.29,11.50512809]
[1758570857135,7.81712627,217.38,217.29,18.61225436]
[1758570857724,7.81712627,217.38,217.29,23.21439895]
[1758570858722,7.81712627,217.38,217.3,0.71]
[1758570859048,0.321,217.38,217.31,7.10712627]
[1758570859251,0.321,217.38,217.31,20.84319952]
[1758570859743,0.321,217.38,217.31,7.10712627]
[1758570859952,0.321,217.38,217.3,0.71]
[1758570860126,0.321,217.38,217.31,7.10712627]
[1758570860454,0.321,217.38,217.32,0.71]
[1758570861127,0.321,217.38,217.33,7.10712627]
[1758570861324,0.321,217.38,217.34,0.71]
[1758570861536,0.321,217.38,217.35,0.71]
[1758570862225,0.321,217.38,217.36,4.60066249]
[1758570862442,134.2,217.37,217.36,4.60066249]
[1758570862950,134.2,217.37,217.36,5.31066249]
[1758570863726,134.2,217.37,217.36,12.41778876]
[1758570864149,0.321,217.38,217.36,12.41778876]
[1758570864456,0.71,217.47,217.37,0.71]
[1758570864632,20.70272028,217.48,217.37,0.71]
[1758570864633,26.0,217.46,217.41,7.10712627]
[1758570864830,0.71,217.5,217.43,7.10712627]
[1758570865051,58.68272028,217.52,217.43,7.10712627]
[1758570865347,58.68272028,217.52,217.36,65.10563119]
[1758570865348,51.57559401,217.52,217.45,7.10712627]
[1758570865553,51.57559401,217.52,217.44,0.71]
[1758570865853,13.59559401,217.52,217.45,7.10712627]
[1758570866452,13.59559401,217.52,217.46,4.59854685]
[1758570867361,26.0,217.51,217.47,7.10712627]
[1758570867651,26.0,217.51,217.48,0.66]
[1758570867859,13.59559401,217.55,217.49,7.10712627]
[1758570868154,13.59559401,217.56,217.49,7.76712627]
[1758570868344,1.70078451,217.55,217.5,4.59770114]
[1758570868851,134.89,217.57,217.5,16.09195401]
[1758570869055,1.7008376,217.56,217.51,7.76712627]
[1758570869255,1.7008376,217.56,217.52,0.66]
[1758570869451,77.55559401,217.59,217.53,0.66]
[1758570869757,1.70141522,217.58,217.53,0.66]
[1758570869958,1.70141522,217.58,217.51,7.76712627]
[1758570870128,1.70141522,217.58,217.51,0.66]
[1758570870333,1.70141522,217.58,217.53,4.59706707]
[1758570870633,1.70141522,217.58,217.53,5.25706707]
[1758570871054,1.70141522,217.58,217.54,0.66]
[1758570871359,26.0,217.58,217.54,0.66]
[1758570871538,26.0,217.58,217.54,7.76712627]
[1758570871855,26.0,217.58,217.54,7.10712627]
[1758570872034,0.69,217.63,217.56,7.10712627]
[1758570872233,13.59559401,217.65,217.55,0.66]
[1758570872234,39.64349372,217.64,217.55,0.66]
[1758570872434,0.69,217.63,217.58,4.59601066]
[1758570873259,45.04712627,217.64,217.58,4.59601066]
[1758570874632,45.04712627,217.64,217.55,12.1512527]
[1758570874633,45.04712627,217.64,217.56,4.59623807]
[1758570874833,7.10712627,217.64,217.56,4.59623807]
[1758570875033,0.69,217.63,217.56,4.59623807]
[1758570875263,37.94,217.63,217.56,4.59623807]
[1758570875447,7.10712627,217.62,217.56,4.59623807]
[1758570875869,7.10712627,217.58,217.5,0.66]
[1758570876036,26.0,217.59,217.53,7.10712627]
[1758570876236,7.10712627,217.64,217.55,7.10712627]
[1758570876442,45.02712627,217.64,217.57,7.10712627]
[1758570876641,45.02712627,217.64,217.55,4.59646341]
[1758570876847,26.0,217.61,217.55,4.59646341]
[1758570877571,26.0,217.61,217.55,5.25646341]
[1758570877758,26.0,217.61,217.55,16.74807453]
[1758570878277,13.59559401,217.63,217.56,7.10712627]
[1758570878573,13.59559401,217.63,217.57,4.5962219]
[1758570878976,13.72559401,217.63,217.57,4.5962219]
[1758570879177,13.59559401,217.63,217.57,4.5962219]
[1758570879358,20.70272028,217.63,217.57,4.5962219]
[1758570879860,20.70272028,217.63,217.57,5.2562219]
[1758570880247,20.70272028,217.63,217.57,0.66]
[1758570880567,20.70272028,217.63,217.55,7.76712627]
[1758570880751,20.70272028,217.63,217.56,4.59643316]
[1758570881770,26.0,217.65,217.57,0.66]
[1758570881955,7.10712627,217.67,217.59,7.10712627]
[1758570882159,7.10712627,217.67,217.59,7.76712627]
[1758570882774,7.10712627,217.67,217.6,4.59558823]
[1758570883278,26.0,217.66,217.6,4.59558823]
[1758570883661,26.0,217.66,217.6,11.7027145]
[1758570884976,26.0,217.66,217.6,23.19168508]
[1758570885381,26.0,217.66,217.61,0.66]
[1758570885551,26.0,217.66,217.62,7.76712627]
[1758570885951,7.23712627,217.71,217.63,0.66]
[1758570886181,37.88,217.7,217.65,4.5945325]
[1758570886670,37.88,217.7,217.65,5.2545325]
[1758570887462,7.10712627,217.71,217.65,5.2545325]
[1758570887668,13.59559401,217.7,217.65,5.2545325]
[1758570887860,13.90479401,217.7,217.65,5.2545325]
[1758570888279,13.90479401,217.7,217.65,4.5945325]
[1758570888473,13.90479401,217.7,217.58,26.0]
[1758570888667,14.03479401,217.7,217.63,7.10712627]
[1758570888870,13.90479401,217.7,217.63,7.10712627]
[1758570889075,13.90479401,217.7,217.64,0.66]
[1758570889758,13.90479401,217.7,217.65,7.10712627]
[1758570889952,0.3092,217.7,217.66,0.66]
[1758570890149,0.3092,217.7,217.67,4.59411035]
[1758570890356,0.13,217.69,217.61,0.66]
[1758570890581,16.80928151,217.7,217.62,2.9044875]
[1758570890752,16.80928151,217.7,217.63,0.66]
[1758570891771,2.9044875,217.68,217.59,0.66]
[1758570891979,2.9044875,217.68,217.59,3.5644875]
[1758570892187,13.59559401,217.69,217.62,4.59516588]
[1758570892486,37.86,217.68,217.63,3.5644875]
[1758570892656,37.86,217.68,217.64,0.66]
[1758570892862,0.3092,217.7,217.65,3.5644875]
[1758570893089,38.1492,217.7,217.65,3.5644875]
[1758570893466,38.1492,217.7,217.63,0.66]
[1758570893766,2.9044875,217.67,217.59,29.5644875]
[1758570894192,2.9044875,217.67,217.59,3.5644875]
[1758570894365,2.9044875,217.67,217.6,0.66]
[1758570895383,51.74479401,217.7,217.6,0.66]
[1758570895570,2.9044875,217.67,217.6,0.66]
[1758570896597,13.59559401,217.68,217.61,7.49986455]
[1758570896898,37.82,217.69,217.63,2.9044875]
[1758570897191,134.2,217.68,217.63,2.9044875]
[1758570897390,0.3092,217.7,217.65,2.9044875]
[1758570897698,26.0,217.69,217.64,2.9044875]
[1758570898671,26.0,217.69,217.64,7.49903534]
[1758570899084,26.0,217.69,217.64,4.59454784]
[1758570899287,26.0,217.69,217.62,3.5744875]
[1758570899476,33.62824188,217.69,217.62,7.49963623]
[1758570899864,2.9044875,217.67,217.6,5.26538299]
[1758570900166,13.59559401,217.66,217.57,11.49020336]
[1758570900367,2.9044875,217.61,217.54,11.49180143]
[1758570900566,2.9044875,217.59,217.53,0.67]
[1758570900783,2.9044875,217.59,217.53,5.26693608]
[1758570900978,28.9044875,217.61,217.54,0.67]
[1758570901179,37.8,217.66,217.59,2.9044875]
[1758570901381,13.59559401,217.65,217.56,26.0]
[1758570901588,13.59559401,217.65,217.58,0.67]
[1758570901894,26.0,217.69,217.61,2.9044875]
[1758570902098,13.59559401,217.69,217.63,2.9044875]
[1758570902400,13.59559401,217.69,217.57,0.67]
[1758570902401,13.59559401,217.66,217.57,0.67]
[1758570902571,2.9044875,217.65,217.57,3.5744875]
[1758570902894,13.59559401,217.62,217.53,4.59706707]
[1758570903095,134.2,217.61,217.54,0.67]
[1758570903679,16.50008151,217.62,217.52,13.69457674]
[1758570903680,150.70008151,217.6,217.52,13.69457674]
[1758570903867,16.50008151,217.58,217.48,0.67]
[1758570904069,134.2,217.57,217.49,2.9044875]
[1758570904796,134.2,217.57,217.49,7.77378348]
[1758570904967,134.2,217.57,217.53,7.10378348]
[1758570905168,134.2,217.56,217.51,7.10378348]
[1758570905374,134.2,217.56,217.51,7.77378348]
[1758570905699,134.2,217.56,217.52,0.67]
[1758570905881,134.2,217.56,217.51,20.81618363]
[1758570906196,134.2,217.56,217.52,0.67]
[1758570906396,134.2,217.56,217.5,4.59770114]
[1758570906806,4.52345141,217.53,217.45,11.49671692]
[1758570906973,4.65345141,217.53,217.45,11.49671692]
[1758570907294,4.65345141,217.53,217.45,16.02016833]
[1758570907472,0.13,217.53,217.45,16.02016833]
[1758570907677,13.72559401,217.53,217.46,4.59833856]
[1758570907878,18.11904542,217.5,217.42,13.98045147]
[1758570908202,13.59559401,217.48,217.39,5.26991011]
[1758570908393,4.52345141,217.44,217.36,5.19345141]
[1758570908703,1.69852374,217.43,217.36,0.67]
[1758570908895,4.52345141,217.44,217.36,5.27056913]
[1758570909078,1.70052504,217.43,217.36,19.14713813]
[1758570909403,26.0,217.45,217.37,5.19345141]
[1758570909578,1.69959103,217.44,217.37,5.19345141]
[1758570909780,1.69959103,217.44,217.36,16.10222536]
[1758570909781,6.22304244,217.44,217.36,4.60056913]
[1758570910093,4.52345141,217.42,217.35,0.77]
[1758570910298,13.59559401,217.38,217.35,0.1]
[1758570910498,0.13,217.43,217.35,0.1]
[1758570910499,0.13,217.46,217.36,5.19345141]
[1758570910685,13.59559401,217.44,217.38,4.52345141]
[1758570910884,37.78,217.45,217.39,4.6000276]
[1758570911201,1.69832978,217.44,217.39,4.6000276]
[1758570911407,1.69832978,217.44,217.4,0.67]
[1758570911779,1.69832978,217.44,217.4,4.52345141]
[1758570911974,26.0,217.46,217.41,0.67]
[1758570912178,4.52345141,217.51,217.42,4.52345141]
[1758570912398,13.59559401,217.49,217.42,4.52345141]
[1758570912583,1.69922858,217.48,217.42,4.52345141]
[1758570912988,1.69922858,217.48,217.43,5.26918134]
[1758570913194,1.69922858,217.48,217.41,5.26945831]
[1758570913395,1.69922858,217.48,217.41,9.79290972]
[1758570913995,1.69922858,217.48,217.41,5.19345141]
[1758570914305,39.59559401,217.46,217.38,5.19345141]
[1758570914480,6.22048949,217.45,217.38,4.52345141]
[1758570914684,26.0,217.43,217.37,4.60036722]
[1758570914904,26.0,217.43,217.37,5.27036722]
[1758570915487,30.52345141,217.43,217.37,4.60036722]
[1758570915785,13.59559401,217.42,217.35,0.1]
[1758570916104,13.59559401,217.42,217.35,4.70084183]
[1758570916903,13.59559401,217.42,217.36,0.72]
[1758570917111,13.59559401,217.45,217.39,4.52345141]
[1758570917402,37.78,217.46,217.35,16.20302724]
[1758570917403,37.78,217.46,217.4,0.72]
[1758570918688,44.11904542,217.48,217.4,0.72]
[1758570918918,26.0,217.48,217.43,9.12249828]
[1758570919217,26.0,217.48,217.42,4.59933915]